[Event "13th London Chess Classic 2023"]
[Site "London"]
[Date "2023.12.05"]
[Round "5.1"]
[White "Moussard, Jules"]
[Black "Volokitin, Andrei"]
[Result "1/2-1/2"]
[ECO "A29"]
[WhiteElo "2639"]
[BlackElo "2660"]
[Annotator "TA"]
[PlyCount "84"]
[EventDate "2023.11.27"]
[EventType "tourn"]
[EventCountry "ENG"]
[SourceTitle "playchess.com"]
[Source "ChessBase"]
[SourceQuality "1"]
[TimeControl "40/5400+30:1800+30"]

{[%evp 12,84,20,19,24,27,39,32,45,38,53,20,47,35,39,33,40,39,59,34,33,27,27,29,28,13,38,35,29,0,0,0,0,0,0,0,0,0,0,0,0,0,0,0,0,0,0,0,0,0,0,0,0,0,0,0,0,0,0,0,0,0,0,0,0,0,0,0,0,0,0,0,0,0,0]} 1. c4 {[%emt 0:05:05]} Nf6 {[%emt 0:00:34]} 2. Nc3 {[%emt 0:00:22]} e5 {[%emt 0:00:09]} 3. Nf3 {[%emt 0:01:25]} Nc6 {[%emt 0:00:10]} 4. g3 {[%emt 0:00:08]} d5 {[%emt 0:00:58]} 5. cxd5 {[%emt 0:00:14]} Nxd5 {[%emt 0:00:02]} 6. Bg2 {[%emt 0:00:13]} Nf6 {[%emt 0:03:04]} 7. O-O {[%emt 0:01:52]} h6 $1 {[%emt 0:00:19][%mdl 4] is more profitable than 7...Be7 at the moment. A29: English Opening: Four Knights Variation with 4 g3.} 8. a3 {[%emt 0:04:14]} a6 {[%emt 0:25:54]} 9. b4 {[%emt 0:06:12] [#]} Bd6 $146 {[%emt 0:03:28] White is slightly better.} ({Predecessor:} 9... Bg4 10. Bb2 Qd7 11. Rc1 Bh3 12. Na4 Bxg2 13. Kxg2 Qd5 14. d3 Qe6 15. e4 Rd8 {½-½ Holm,K (2488)-Sivuk,V (2461) Gothenburg Kvibergspelen 2023 (5)}) 10. d4 {[%emt 0:14:52]} O-O {[%emt 0:02:59]} 11. d5 {[%emt 0:04:19]} Na7 {[%emt 0:22:17]} 12. Nd2 {[%emt 0:00:57][%cal Bf3d2,Bd2c4,Bc4d6][%mdl 32]} Nb5 {[%emt 0:01:30]} 13. Bb2 {[%emt 0:02:18]} Nxc3 {[%emt 0:11:34]} 14. Bxc3 {[%emt 0:00:14]} Bg4 {[%emt 0:02:52]} 15. h3 {[%emt 0:05:17]} Bh5 {[%emt 0:00:04][%cal Bg4h5,Bh5g6,Bg6e4,Be4g2][%mdl 32]} 16. Nc4 {[%emt 0:05:47]} Re8 {[%emt 0:00:17]} 17. Rc1 {[%emt 0:03:33]} Bg6 {[%emt 0:02:56]} 18. Qb3 {[%emt 0:06:57]} Be4 {[%emt 0:03:40]} 19. Rfd1 {[%emt 0:00:56]} Qd7 {[%emt 0:00:14]} 20. Nxd6 {[%emt 0:10:46]} (20. Qb2 {seems wilder.} Bxg2 21. Kxg2 Ne4 22. f3) 20... Bxg2 {[%emt 0:03:40] The position is equal.} 21. Nxe8 {[%emt 0:10:59]} Qxh3 {[%emt 0:00:08][%csl Gg2][%cal Rh3h1] [#]} 22. Nxf6+ {[%emt 0:01:58]} (22. Nxc7 $2 Qh1#) 22... gxf6 {[%emt 0:00:02][%csl Gg2][%cal Rh3h1]} 23. f3 {[%emt 0:00:18]} Bf1 {[%emt 0:06:17]} 24. Rxf1 {[%emt 0:01:01]} Qxg3+ {[%emt 0:00:03]} 25. Kh1 {[%emt 0:00:01] [#] aiming for Rg1.} Qh3+ {[%emt 0:02:29]} (25... Kh8 $5 26. Qc4 $8 (26. Be1 {leads to mate.} Qh3+ 27. Kg1 Rg8+ 28. Kf2 Qh4+ 29. Ke3 Qd4#) 26... Rg8 $11) 26. Kg1 {[%emt 0:00:02]} Qg3+ {[%emt 0:00:06]} 27. Kh1 {[%emt 0:00:01] Threatens to win with Rg1.} Kh8 {[%emt 0:02:31] ( -> ...Qh4+)} 28. Qc4 {[%emt 0:00:43] Inhibits Qh4+.} (28. Be1 {is a self mate.} Qh3+ 29. Kg1 Rg8+ 30. Kf2 Qh4+ 31. Ke3 Qd4#) 28... Qh3+ {[%emt 0:01:22]} (28... Rg8 $5 29. Qg4 $8 (29. Qxc7 $2 Qh4#) 29... Rxg4 30. fxg4 Qh4+ 31. Kg2 Qxg4+ 32. Kf2 Qf4+ 33. Kg2 Qg4+ 34. Kf2 Qf4+ 35. Kg2 Qg4+ $11) 29. Kg1 {[%emt 0:00:02]} Qg3+ {[%emt 0:00:09]} 30. Kh1 {[%emt 0:00:02]} Rg8 {[%emt 0:02:25][%cal Rg3h3] Prevents Qg4} 31. Qg4 {[%emt 0:00:12] Dodges Qh3+} Rxg4 {[%emt 0:00:09]} 32. fxg4 {[%emt 0:00:02]} Qh3+ {[%emt 0:00:20]} 33. Kg1 {[%emt 0:00:05] Strongly threatening Rf3.} Qg3+ {[%emt 0:00:19]} 34. Kh1 {[%emt 0:00:02] Rf3 would be deadly.} Qh4+ {[%emt 0:00:10]} 35. Kg1 {[%emt 0:00:25] Hoping for Rf2.} Qxg4+ {[%emt 0:00:08]} 36. Kh1 {[%emt 0:00:11]} Qe4+ {[%emt 0:04:16]} 37. Kg1 {[%emt 0:00:31]} Qg4+ {[%emt 0:00:32]} 38. Kh1 {[%emt 0:00:02]} Qh3+ {[%emt 0:00:40]} 39. Kg1 {[%emt 0:00:01] Black must now prevent Rf3.} Qg3+ {[%emt 0:00:21]} 40. Kh1 {[%emt 0:00:00]} Qh4+ {[%emt 0:00:00]} 41. Kg1 {[%emt 0:00:12]} Qg5+ {[%emt 0:11:31]} 42. Kh1 {[%emt 0:00:11]} Qh5+ {[%emt 0:01:53] Weighted Error Value: White=0.05 (flawless) /Black=0.03 (flawless)} 1/2-1/2

[Event "13th London Chess Classic 2023"]
[Site "London"]
[Date "2023.12.05"]
[Round "5.2"]
[White "Adams, Michael"]
[Black "Gukesh D"]
[Result "1/2-1/2"]
[ECO "B30"]
[WhiteElo "2670"]
[BlackElo "2746"]
[Annotator "TA"]
[PlyCount "107"]
[EventDate "2023.11.27"]
[EventType "tourn"]
[EventCountry "ENG"]
[SourceTitle "playchess.com"]
[Source "ChessBase"]
[SourceQuality "1"]
[TimeControl "40/5400+30:1800+30"]

{[%evp 9,107,10,37,47,36,45,55,40,45,30,42,11,18,0,0,7,12,18,27,0,0,-31,-23,-32,0,-31,51,52,56,43,63,44,44,47,47,41,40,41,35,46,45,41,36,45,42,20,10,18,27,27,141,80,100,93,96,34,44,43,42,45,73,77,79,68,77,61,68,0,0,-39,107,0,8,8,8,28,113,102,85,97,187,25,104,98,109,131,271,250,279,272,290,283,305,309,412,0,217,0,393,222]} 1. e4 {[%emt 0:00:03]} c5 {[%emt 0:00:06]} 2. Nf3 {[%emt 0:00:05]} Nc6 {[%emt 0:00:05]} 3. Bb5 {[%emt 0:00:06]} e6 {[%emt 0:00:06]} 4. O-O {[%emt 0:00:06]} Nge7 {[%emt 0:00:07]} 5. Re1 {[%emt 0:00:07]} b6 {[%emt 0:00:33]} 6. c3 {[%emt 0:02:27] B30: Sicilian: 2...Nc6 3 Bb5, lines without ...g6.} a6 {[%emt 0:00:16]} 7. Ba4 {[%emt 0:02:50]} c4 {[%emt 0:00:57]} 8. d4 {[%emt 0:04:20] d5 would be deadly. White is slightly better.} cxd3 $1 {[%emt 0:00:23]} 9. Qxd3 {[%emt 0:03:52]} Ng6 {[%emt 0:00:09] [#]} 10. Nd4 $146 {[%emt 0:05:30]} ({Predecessor:} 10. Bc2 Be7 11. a4 Qc7 12. Be3 O-O 13. Qe2 Rb8 14. h3 Bc5 15. Bd3 Bxe3 16. Qxe3 {½-½ Chronopoulos,A (2248)-Boni,R (2264) SM-2022-0-00492}) 10... Qc7 {[%emt 0:11:52]} 11. Nxc6 {[%emt 0:07:13]} dxc6 {[%emt 0:00:09]} 12. e5 {[%emt 0:03:22]} Bb7 {[%emt 0:08:29]} 13. Nd2 {[%emt 0:04:03]} Be7 {[%emt 0:13:15]} 14. Bc2 {[%emt 0:10:10]} c5 {[%emt 0:05:37][%cal Ob7g2]} (14... Nxe5 15. Qg3 f6 16. Nc4 $16 (16. Qxg7 O-O-O $11)) 15. Nf3 {[%emt 0:01:26]} Rd8 {[%emt 0:03:34]} 16. Qe2 {[%emt 0:02:26]} Qc6 {[%emt 0:03:04]} 17. Kf1 {[%emt 0:08:02]} Kd7 {[%emt 0:12:34]} (17... O-O $15) 18. Bd3 $14 {[%emt 0:07:30]} (18. Bxg6 hxg6 19. Rd1+ Kc8 20. Rxd8+ Bxd8 $17) 18... b5 {[%emt 0:00:49]} 19. Qc2 {[%emt 0:02:52]} (19. Bxg6 hxg6 20. Rd1+ Kc7 21. Rxd8 Rxd8 $15) 19... Kc7 {[%emt 0:01:10]} 20. Be4 {[%emt 0:00:14] Prevents Qd5} Qd7 {[%emt 0:00:05]} 21. a4 {[%emt 0:04:16]} Bxe4 {[%emt 0:11:42]} 22. Qxe4 {[%emt 0:00:09]} Qd5 {[%emt 0:03:07]} 23. Qe2 {[%emt 0:02:15]} Qd3 {[%emt 0:01:27]} 24. Qxd3 {[%emt 0:02:03]} Rxd3 {[%emt 0:00:02]} 25. axb5 {[%emt 0:00:34]} axb5 {[%emt 0:00:05]} 26. Be3 {[%emt 0:02:21]} Rb8 {[%emt 0:01:21]} 27. Ra5 {[%emt 0:03:19]} Rd5 {[%emt 0:02:08]} 28. Rea1 {[%emt 0:01:30]} Rb7 {[%emt 0:01:15]} 29. Ra8 {[%emt 0:01:30] Threatens to win with Rg8.} Nf8 {[%emt 0:06:23]} (29... Rb8 $11 {remains equal.}) 30. Bg5 {[%emt 0:03:01] White has more active pieces. The black rooks are badly placed.} (30. Re8 $142 $1 {[%cal Re8e7]} Kb6 31. b4) 30... Ng6 {[%emt 0:03:59] Black is weak on the dark squares} 31. Bxe7 {[%emt 0:02:23]} Nxe7 {[%emt 0:00:02]} 32. Rf8 {[%emt 0:00:13]} (32. Ng5 $16) 32... Ng6 {[%emt 0:02:30][%cal Be7g6,Bg6f4,Bf4d3][%mdl 32]} 33. Rg8 {[%emt 0:04:35]} Kb6 {[%emt 0:00:48]} 34. Rxg7 {[%emt 0:00:35]} h5 {[%emt 0:00:07]} 35. Re1 {[%emt 0:01:47]} Nf4 {[%emt 0:02:10]} 36. g3 {[%emt 0:01:41]} Nd3 {[%emt 0:00:02][%csl LRb2,LRe1]} 37. Re2 {[%emt 0:00:06]} Ra7 {[%emt 0:01:56]} 38. h4 {[%emt 0:02:27]} (38. Rh7 $14) 38... c4 $11 {[%emt 0:03:49]} 39. Rh7 {[%emt 0:02:16]} Rd8 {[%emt 0:01:01]} (39... Ra1+ $15 {stays ahead.} 40. Kg2 Ra2) 40. Rd2 {[%emt 0:00:00]} (40. Rxh5 Ra1+ 41. Kg2 Ra2) (40. Ng5 $1 $16) 40... Ra2 {[%emt 0:00:00]} 41. Rxf7 {[%emt 0:13:00]} (41. Rxh5 Rxb2 42. Rxb2 Nxb2 $17) 41... Rxb2 {[%emt 0:03:52]} 42. Re7 {[%emt 0:06:23]} Rb1+ {[%emt 0:19:32]} (42... Rxd2 $11 43. Rxe6+ (43. Nxd2 Nc5 $11) 43... Kc7 44. Nxd2 Nxf2) 43. Ke2 $1 $16 {[%emt 0:00:19]} Rc1 {[%emt 0:00:13]} 44. Rxe6+ {[%emt 0:00:21]} Kc5 {[%emt 0:01:31]} 45. Ng5 $2 {[%emt 0:07:54]} (45. Rh6 $18) 45... b4 {[%emt 0:01:24] [#]} (45... Rxc3 $11 46. Ne4+ Kd5 47. Nxc3+ Kxe6) 46. cxb4+ $1 {[%emt 0:01:27]} ({Not} 46. Ne4+ $2 Kd5 47. Ng5 b3 $19) 46... Kxb4 {[%emt 0:00:05] And now ...Re1+ would win.} 47. Nf3 {[%emt 0:02:45] Prevents Re1+. Strongly threatening Rb6+.} Rc3 {[%emt 0:01:26]} (47... Rg8 $16 {was necessary.}) 48. Rb6+ $18 {[%emt 0:02:12]} Kc5 {[%emt 0:00:39] [#]} 49. Rf6 {[%emt 0:00:27]} Re8 {[%emt 0:01:28]} 50. e6 {[%emt 0:00:23]} Nc1+ {[%emt 0:01:55]} 51. Kf1 {[%emt 0:01:15]} Nd3 {[%emt 0:00:02]} 52. Ke2 {[%emt 0:00:08]} (52. Rf5+ $142 Kb4 53. Re2 (53. Rxh5 Rc1+ 54. Kg2 Rxe6 $16)) 52... Nc1+ $1 {[%emt 0:01:00]} 53. Kf1 $2 {[%emt 0:00:07]} (53. Kd1 {Hoping for Ng5.} Nd3 54. Ke2) 53... Nd3 {[%emt 0:06:39]} 54. Rd1 {Weighted Error Value: White=0.30/Black=0.24 (precise)} (54. Rf5+ $142 Kb4 55. Re2 (55. Rxh5 Rxe6 56. Kg2 Ra6 $18)) 1/2-1/2

[Event "13th London Chess Classic 2023"]
[Site "London"]
[Date "2023.12.05"]
[Round "5.3"]
[White "McShane, Luke J"]
[Black "Vitiugov, Nikita"]
[Result "1/2-1/2"]
[ECO "B51"]
[WhiteElo "2626"]
[BlackElo "2712"]
[Annotator "TA"]
[PlyCount "57"]
[EventDate "2023.11.27"]
[EventType "tourn"]
[EventCountry "ENG"]
[SourceTitle "playchess.com"]
[Source "ChessBase"]
[SourceQuality "1"]
[TimeControl "40/5400+30:1800+30"]

{[%evp 9,57,0,11,0,0,0,0,0,0,-16,10,-66,-51,-51,-50,-61,-70,-78,-39,-44,-20,-30,-7,-33,-25,-51,-37,-52,-34,-34,-27,-41,5,15,14,10,12,16,28,27,19,0,0,0,35,0,0,0,36,-16]} 1. e4 {[%emt 0:02:38]} c5 {[%emt 0:00:08]} 2. Nf3 {[%emt 0:00:06]} d6 {[%emt 0:00:05]} 3. Bb5+ {[%emt 0:03:45]} Nd7 {[%emt 0:00:10]} 4. Ba4 {[%emt 0:06:32]} Ngf6 {[%emt 0:02:03]} 5. d3 {[%emt 0:01:10]} e6 {[%emt 0:07:02]} 6. c4 {[%emt 0:04:21] B51: Sicilian: Moscow Variation (3 Bb5+) without 3...Bd7.} Be7 {[%emt 0:01:50]} 7. Nc3 {[%emt 0:01:35]} O-O {[%emt 0:00:21]} 8. O-O {[%emt 0:00:29] The position is equal.} a6 {[%emt 0:10:25] [#]} 9. Ne1 $146 {[%emt 0:04:48]} ({Predecessor:} 9. Qe2 Qc7 10. Nd2 Ne5 11. f4 Nc6 12. Bxc6 Qxc6 13. a4 Bd7 14. Nf3 Qc7 15. e5 {½-½ Jones,G (2672)-Keymer,V (2655) Bundesliga 2122 2022 (9.1)}) 9... d5 {[%emt 0:02:48]} 10. Qe2 {[%emt 0:05:51] [#]} (10. cxd5 $11 exd5 11. Nf3) 10... b5 $1 {[%emt 0:02:42]} 11. Bc2 {[%emt 0:03:14]} (11. Bb3 d4) 11... d4 {[%emt 0:09:21]} 12. Nd1 {[%emt 0:00:16]} e5 {[%emt 0:00:05]} 13. f4 {[%emt 0:01:27]} exf4 {[%emt 0:02:08]} 14. Bxf4 {[%emt 0:00:04]} Bb7 {[%emt 0:01:00]} 15. Nf2 {[%emt 0:00:33]} Re8 {[%emt 0:02:12]} 16. Nf3 {[%emt 0:01:32]} Nf8 {[%emt 0:01:00][%cal Bd7f8,Bf8g6,Bg6f4][%mdl 32]} 17. Bb3 {[%emt 0:03:45]} Ng6 {[%emt 0:02:00]} 18. Bd2 {[%emt 0:02:38]} b4 {[%emt 0:08:43]} 19. Ba4 {[%emt 0:02:02]} Rf8 {[%emt 0:02:14]} 20. Rae1 {[%emt 0:09:55]} Bd6 {[%emt 0:00:43]} (20... Qc7 $15) 21. Bg5 $1 $11 {[%emt 0:10:31]} Bf4 {[%emt 0:01:36]} 22. Bxf4 {[%emt 0:07:43]} Nxf4 {[%emt 0:00:10]} 23. Qd2 {[%emt 0:00:04]} Ng6 {[%emt 0:00:48]} 24. e5 {[%emt 0:07:20]} Nd7 {[%emt 0:01:11]} 25. Ne4 {[%emt 0:01:21][%cal Oe5e6]} Nb6 {[%emt 0:05:33]} 26. Bd1 {[%emt 0:01:26]} ({Much weaker is} 26. Nxc5 Bxf3 27. Rxf3 Qe7 $17) 26... Nd7 {[%emt 0:04:18]} 27. Ba4 {[%emt 0:00:44][%cal Oe5e6] Black must now prevent e6!} (27. Neg5 $5 {[%cal Re5e6]}) 27... Nb6 {[%emt 0:00:18]} 28. Bd1 {[%emt 0:00:04]} ({Reject} 28. Nxc5 Bxf3 29. Rxf3 Qe7 $17) 28... Nd7 {[%emt 0:04:48]} 29. Ba4 {[%emt 0:16:06] Weighted Error Value: White=0.12 (very precise) /Black=0.12 (very precise)} (29. Neg5 $14) 1/2-1/2

[Event "13th London Chess Classic 2023"]
[Site "London"]
[Date "2023.12.05"]
[Round "5.4"]
[White "Royal, Shreyas"]
[Black "Bartel, Mateusz"]
[Result "0-1"]
[ECO "D94"]
[WhiteElo "2404"]
[BlackElo "2651"]
[Annotator "TA"]
[PlyCount "114"]
[EventDate "2023.11.27"]
[EventType "tourn"]
[EventCountry "ENG"]
[SourceTitle "playchess.com"]
[Source "ChessBase"]
[SourceQuality "1"]
[TimeControl "40/5400+30:1800+30"]

{[%evp 14,114,42,41,40,41,41,40,48,37,35,45,40,30,51,25,31,28,48,24,45,43,44,49,58,28,18,27,12,0,25,24,28,-4,38,41,37,29,67,4,47,0,0,0,0,-81,-86,-86,-72,-133,-128,-138,-130,-139,-106,-101,-92,-101,-101,-94,-90,-113,-102,-102,-62,-141,-140,-141,-141,-141,-137,-138,-140,-120,-124,-387,-433,-416,-366,-597,-585,-599,-607,-631,-439,-414,0,-574,0,-402,-335,-333,-313,-358,-381,-483,-483,-903,-575,-29971,-29971,-29964,-29965]} 1. d4 {[%emt 0:00:05]} d5 {[%emt 0:00:10]} 2. c4 {[%emt 0:00:07]} c6 {[%emt 0:00:07]} 3. Nf3 {[%emt 0:00:07]} Nf6 {[%emt 0:00:04]} 4. e3 {[%emt 0:00:17]} g6 {[%emt 0:00:27]} 5. Nc3 {[%emt 0:00:26]} Bg7 {[%emt 0:00:06]} 6. Be2 {[%emt 0:00:42]} O-O {[%emt 0:00:09]} 7. O-O {[%emt 0:00:15]} Be6 {[%emt 0:00:23]} 8. b3 {[%emt 0:07:01]} Ne4 {[%emt 0:00:07] D94: Grünfeld: 4 Nf3 Bg7 5 e3.} 9. Bb2 {[%emt 0:01:44]} Nxc3 {[%emt 0:04:31] 9...f5 is setting a new trend.} 10. Bxc3 {[%emt 0:00:09]} h6 {[%emt 0:00:08] White is slightly better.} 11. Qc2 {[%emt 0:06:47] [#]} Bf5 $146 {[%emt 0:05:16]} ({Predecessor:} 11... Nd7 12. e4 dxe4 13. Qxe4 Qc7 14. h3 b5 15. Rac1 bxc4 16. bxc4 Rab8 17. Qe3 Qb7 {1-0 Andersson,F (2262)-Engqvist,T (2353) SWE-chT 1516 2015 (4.4)}) 12. Qb2 {[%emt 0:00:33]} e6 {[%emt 0:03:00]} 13. Rfc1 {[%emt 0:16:53]} g5 {[%emt 0:04:56]} 14. Nd2 {[%emt 0:13:13]} Nd7 {[%emt 0:05:54]} 15. b4 {[%emt 0:04:32][%cal Bb3b4,Bb4b5][%mdl 32]} Rc8 {[%emt 0:12:44]} 16. a4 {[%emt 0:02:13]} Re8 {[%emt 0:00:36][%cal Oh6h5]} 17. b5 {[%emt 0:04:51]} c5 {[%emt 0:05:50]} 18. cxd5 {[%emt 0:02:41]} exd5 {[%emt 0:01:44]} 19. dxc5 {[%emt 0:02:23]} (19. Bf3 $5 {[%cal Rf3d5]}) 19... Bxc3 {[%emt 0:00:21]} 20. Qxc3 {[%emt 0:00:04] Threatens to win with Nb3.} Nxc5 {[%emt 0:00:15][%cal Od5d4]} 21. Qb4 {[%emt 0:01:44]} b6 {[%emt 0:00:44][%cal Od5d4]} (21... Qf6 $5 {[%cal Rd5d4]}) 22. Nf3 {[%emt 0:02:51]} Qf6 {[%emt 0:00:46]} 23. Qa3 {[%emt 0:10:28]} Ne4 {[%emt 0:08:53]} (23... Ne6 {simplifies} 24. h3 h5 25. Rxc8 Rxc8 26. Rc1 Rxc1+ 27. Qxc1 g4) 24. Nd4 {[%emt 0:00:07]} Bg6 {[%emt 0:11:58]} 25. Bf3 {[%emt 0:01:01] Bxe4 would be deadly.} Nxf2 {[%emt 0:00:27]} 26. Kxf2 {[%emt 0:08:04]} (26. Rf1 $1 $14 Nd3 27. Bxd5) 26... g4 {[%emt 0:00:21][%mdl 64] [#] Pin} (26... Rxc1 $5 27. Qxc1 (27. Rxc1 g4 $11 {[%mdl 64] Pin}) 27... g4 $11 {[%mdl 64] Pin}) 27. Rxc8 {[%emt 0:00:59]} (27. Rc6 $1 $14 Rxc6 28. bxc6) 27... Rxc8 $11 {[%emt 0:00:04]} 28. Rc1 {[%emt 0:00:06]} Rc4 {[%emt 0:07:47]} 29. Ke2 {[%emt 0:06:42]} gxf3+ $17 {[%emt 0:05:51]} 30. Nxf3 {[%emt 0:00:05]} Bc2 {[%emt 0:05:58] Black is much more active.} 31. Nd4 {[%emt 0:02:35]} (31. Qa1 $142 Qf5 32. Qe5) 31... Rxa4 {[%emt 0:00:20]} (31... Bxa4 32. Rxc4 Bxb5 33. Nxb5 $16) 32. Qb2 {[%emt 0:00:31]} Be4 {[%emt 0:05:02][%cal Oa4c4]} 33. Qb3 {[%emt 0:00:12] Repels Rc4} Rc4 {[%emt 0:00:54] Some like it hot} 34. Rxc4 {[%emt 0:00:05]} dxc4 {[%emt 0:00:07]} 35. Qxc4 {[%emt 0:00:05]} Bxg2 {[%emt 0:00:09][%mdl 4096] [#] Endgame ( -> ...Qf1+). KQB-KQN} 36. Qc8+ {[%emt 0:01:19]} Kh7 {[%emt 0:00:12]} 37. Qc2+ {[%emt 0:02:32]} Qg6 {[%emt 0:02:28]} 38. Qc7 {[%emt 0:00:05]} Be4 {[%emt 0:00:59][%cal Bg2e4,Be4g6,Bg6d3][%mdl 32]} 39. Kd2 {[%emt 0:03:54]} (39. Qxa7 $15 Qh5+ 40. Kd2) 39... Qg2+ {[%emt 0:01:02]} 40. Ke1 {[%emt 0:00:00]} Qg1+ {[%emt 0:00:00]} 41. Ke2 {[%emt 0:01:39]} Bg6 {[%emt 0:02:42]} 42. Qe5 {[%emt 0:01:27] Wards off Bh5+} Qg2+ {[%emt 0:01:28]} 43. Ke1 {[%emt 0:00:36]} Qe4 {[%emt 0:08:20]} 44. Nc6 {[%emt 0:03:27][%mdl 8192]} (44. Qxe4 $17 {was called for.} Bxe4 45. Kf2) 44... Qb1+ $19 {[%emt 0:02:50]} 45. Kf2 {[%emt 0:00:07]} a5 {[%emt 0:03:17] White must now prevent ...a4.} (45... Be4 46. Qf4 $17) 46. Ne7 $2 {[%emt 0:03:11]} (46. bxa6 Qc2+ 47. Kg3 Qxc6 48. h4) 46... Bd3 {[%emt 0:04:48]} 47. Nd5 {[%emt 0:05:16]} Qf1+ {[%emt 0:05:37]} (47... Qxb5 48. Nf6+ Kh8 49. Nd5+ Kg8 50. Nf6+ Kf8 51. Nd5 $11) 48. Kg3 {[%emt 0:00:01]} Qg1+ {[%emt 0:01:55]} (48... Bxb5 49. Qe4+ Kg8 50. Qg4+ Kf8 51. Qd4 Qg1+ 52. Kf3 Qf1+ 53. Kg3 Qe1+ 54. Kf3 Qh1+ 55. Kg3 Qe1+ 56. Kf3 Be2+ 57. Ke4 Qh4+ 58. Nf4 Qe7+ 59. Kf5 Qg5+ 60. Ke4 f5+ 61. Ke5 Qg7+ 62. Kxf5 Qxd4 63. Ne6+ Kf7 64. Nxd4 Bd3+ 65. Ke5 $19) 49. Kf3 {[%emt 0:00:40]} Qf1+ {[%emt 0:00:15]} (49... Bxb5 50. Nf6+ Kg6 51. Qxb5 Qd1+ 52. Kf2 (52. Ke4 Qh1+ 53. Kf4 Qxh2+ 54. Kf3 Qh3+ 55. Ke2 Kxf6 $17) 52... Qd2+ 53. Kf3 Kxf6 54. Qxb6+ Kg7 55. Qc5 $17) 50. Kg3 {[%emt 0:00:36]} Qg1+ {[%emt 0:00:52]} (50... Bxb5 $2 {is the wrong capture.} 51. Qe4+ Kg8 52. Qg4+ Kf8 53. Qc8+ Be8 54. Qd8 Qg1+ 55. Kf3 Qh1+ 56. Kg3 $19) 51. Kf3 $1 {[%emt 0:00:02]} Qg5 {[%emt 0:00:06]} ({Inferior is} 51... Bxb5 52. Nf6+ Kg6 53. Qxb5 Qd1+ 54. Kg2 (54. Ke4 Qh1+ 55. Kf4 Qxh2+ 56. Kf3 Qh3+ 57. Ke2 Kxf6 $17) 54... Qd2+ 55. Kf3 Kxf6 56. Qxb6+ Kg7 57. Qc5 $17) 52. Qd4 {[%emt 0:01:27]} Bxb5 {[%emt 0:01:06]} 53. h4 {[%emt 0:01:07]} Qf5+ {[%emt 0:00:44]} 54. Kg3 {[%emt 0:00:05]} h5 {[%emt 0:01:29] Hoping for ...a4.} ({Don't go for} 54... Be2 $2 55. Nf4 Qg4+ 56. Kf2 $19) 55. Nf6+ {[%emt 0:01:49]} (55. Nxb6 $142 a4 56. Nd5) 55... Kg6 {[%emt 0:00:16]} 56. Qxb6 {[%emt 0:00:06]} Qe5+ {[%emt 0:00:55]} 57. Kg2 {[%emt 0:00:12]} Bf1+ {[%emt 0:00:06] Weighted Error Value: White=0.43/Black=0.35} 0-1

[Event "13th London Chess Classic 2023"]
[Site "London"]
[Date "2023.12.05"]
[Round "5.5"]
[White "Tabatabaei, M. Amin"]
[Black "Niemann, Hans Moke"]
[Result "1/2-1/2"]
[ECO "E32"]
[WhiteElo "2694"]
[BlackElo "2659"]
[Annotator "TA"]
[PlyCount "62"]
[EventDate "2023.11.27"]
[EventType "tourn"]
[EventCountry "ENG"]
[SourceTitle "playchess.com"]
[Source "ChessBase"]
[SourceQuality "1"]
[TimeControl "40/5400+30:1800+30"]

{[%evp 13,62,0,0,0,0,14,2,0,0,0,0,0,0,0,0,0,18,22,14,18,16,16,16,17,19,14,17,18,16,22,20,19,19,18,17,17,18,17,17,18,18,17,10,0,0,0,0,0,0,0,0]} 1. d4 {[%emt 0:01:08]} Nf6 {[%emt 0:00:16]} 2. c4 {[%emt 0:00:07]} e6 {[%emt 0:00:08]} 3. Nc3 {[%emt 0:00:07]} Bb4 {[%emt 0:00:07]} 4. Qc2 {[%emt 0:00:13]} O-O {[%emt 0:00:51]} 5. e4 {[%emt 0:02:47]} d5 {[%emt 0:00:12]} 6. e5 {[%emt 0:00:23]} Ne4 {[%emt 0:00:07]} 7. Bd3 {[%emt 0:00:07]} c5 $1 {[%emt 0:00:18] The position is equal.} 8. Nge2 {[%emt 0:00:42] E32: Nimzo-Indian: Classical (4 Qc2): 4...0-0.} cxd4 {[%emt 0:00:13]} 9. Nxd4 {[%emt 0:00:07]} Nd7 {[%emt 0:00:08]} 10. Bf4 {[%emt 0:00:11]} (10. Bxe4 {simplifies} dxe4 11. Qxe4 f5 12. Qf4) 10... Qh4 {[%emt 0:00:26]} 11. g3 {[%emt 0:00:13]} Qh5 {[%emt 0:00:06]} 12. O-O {[%emt 0:02:02]} g5 {[%emt 0:00:35]} 13. cxd5 {[%emt 0:00:42]} gxf4 {[%emt 0:00:16]} 14. dxe6 {[%emt 0:00:32]} Nxc3 {[%emt 0:00:10]} 15. exd7 {[%emt 0:00:19]} fxg3 {[%emt 0:00:50]} 16. hxg3 {[%emt 0:00:14]} (16. bxc3 $2 Qxh2#) 16... Bxd7 {[%emt 0:00:07] [#] Threatens to win with ...Ba4.} 17. bxc3 {[%emt 0:00:07]} Rac8 {[%emt 0:00:07]} 18. Bf5 {[%emt 0:01:24]} Bxc3 {[%emt 0:00:20] A strong pair of Bishops.} ({Don't take} 18... Rxc3 19. Qe4 Bc8 20. Rac1 $16) 19. Qd1 {[%emt 0:00:14]} (19. Bxd7 {simplifies} Bxa1 20. Bxc8 Bxd4 21. Bxb7 Qxe5 22. Kg2) 19... Qxd1 {[%emt 0:00:23]} 20. Raxd1 {[%emt 0:00:31]} Rc4 {[%emt 0:00:26]} ({But not} 20... Bxf5 21. Nxf5 Rc7 22. Rd5 $14) 21. Bxd7 {[%emt 0:00:09][%cal Oe5e6] [#] Strongly threatening e6!} Rxd4 {[%emt 0:00:04]} 22. Rxd4 {[%emt 0:01:11]} Bxd4 $11 {[%emt 0:00:06][%mdl 4096] [#] Endgame KRB-KRB} 23. e6 $146 {[%emt 0:00:06]} ({Predecessor:} 23. Re1 Rd8 24. e6 fxe6 25. Bxe6+ Kg7 26. Kg2 Re8 27. Re4 Bc5 28. Bd5 Rxe4 29. Bxe4 b6 30. f4 h6 31. Kf3 Kf6 32. Kg2 Kg7 33. Kf3 Kf6 34. Kg2 Kg7 {½-½ Mamedyarov,S (2757)-Nepomniachtchi,I (2792) Sinquefield Cup 9th 2022 (7)}) 23... fxe6 {[%emt 0:00:07]} 24. Bxe6+ {[%emt 0:00:04]} Kg7 {[%emt 0:00:05]} 25. Kg2 {[%emt 0:00:10]} b5 {[%emt 0:00:21]} 26. f4 {[%emt 0:01:06]} Re8 {[%emt 0:00:29]} 27. Bb3 {[%emt 0:00:54]} a5 {[%emt 0:00:09]} 28. Rd1 {[%emt 0:00:36]} Rd8 {[%emt 0:00:08]} 29. a4 {[%emt 0:01:21]} b4 {[%emt 0:00:14]} 30. g4 {[%emt 0:00:31]} Bb6 {[%emt 0:00:31]} 31. Rxd8 {[%emt 0:00:28]} Bxd8 {[%emt 0:00:05] An even fight not without its subleties.   Weighted Error Value: White=0.01 (flawless) /Black=0.02 (flawless)} 1/2-1/2